{"text_format":"1","workbook":"xlsx","n_sheets":4,"sheets":["SS - TI","Auxiliar","Cálculos","Alerta"],"not_rendered":{"charts":0,"images":2,"macros":1,"external_links":0,"defined_names":2,"comments":0,"pivot_tables":0},"unopened":[],"bounds":{"document_bytes":16777216,"sheet_cells":100000,"rows_first":2000,"rows_last":500,"rows_between":2000,"halvings":0,"cell_chars":16384,"cell_head_chars":4096},"cells_cut":0,"cells_raw":0,"read":"whole","date_system":"1900"}

{"sheet":"SS - TI","index":0,"n_rows":64,"n_cols":6,"rows_kept":64,"cut":false,"hidden":true,"merged":[[63,1,64,5],[35,1,35,3],[27,1,27,3],[0,1,0,5],[1,1,2,5],[15,1,15,5],[23,1,23,3],[25,1,25,3],[17,1,17,3],[19,1,19,3],[20,1,20,3],[21,1,21,3],[13,1,13,5],[12,1,12,5],[8,1,8,5],[9,1,9,5],[7,1,7,5],[46,1,46,5],[33,1,33,3],[11,1,11,5],[37,1,37,3],[29,1,29,3],[31,1,31,3],[10,1,10,5],[44,1,44,3],[61,1,62,5],[60,1,60,5],[40,1,40,5],[51,3,51,5],[49,1,49,3],[47,1,47,3],[45,1,45,3],[43,1,43,3],[48,1,48,3],[55,1,55,5],[56,1,56,5],[54,2,54,5],[57,1,57,5]]}
[]
[null,"Simulador - Segurança Social - Trabalhadores Independentes"]
[]
[]
[null,"Nome:","Nome da Empresa"]
[null,"NIF:","NIF da Empresa"]
[]
[]
[]
[]
[]
[]
[]
[]
[]
[null,"Dados para simulação"]
[]
[null,"Trabalhador Independente ou Empresário Em Nome Individual? * (TI -Trab. Ind. /ENI -Emp. Nome Ind.)",null,null,null,"Trab. Ind."]
[]
[null,"Tem rendimentos da categoria A? * (S-Sim/N-Não)",null,null,null,"Não"]
[null,"Período de tributação seguinte ao do início de atividade? "]
[null,"Remuneração mensal média Categoria A igual ou superior a 438,81€? (S-Sim/N-Não)",null,null,null,"Não"]
[]
[null,"Tem contabilidade organizada? * (S-Sim/N-Não)",null,null,null,"Sim"]
[]
[null,"Lucro Tributável de 2018:"]
[]
[null,"Pretende optar pela declaração trimestral? (S-Sim/N-Não)",null,null,null,"Não"]
[]
[null,"Rendimento do trimestre:",null,null,null,"Selecione"]
[]
[null,"Vendas"]
[]
[null,"Serviços de restauração"]
[]
[null,"Prestações de serviços"]
[]
[null,"Se pretender optar pela variação de rendimento",null,null,null,"Selecione"]
[]
[]
[null,"Resultado da simulação"]
[]
[]
[]
[]
[null,"Por favor preencher o lucro tributável de 2018."]
[]
[]
[]
[]
[]
[null,null,"Data de simulação",{"$f":"TODAY()","v":"2020-01-23"}]
[]
[]
[null,"Nota: ","Resultado decorrente da interpretação da OCC. Será definido um montante de dispensa de"]
[null,"contribuição, por despacho do Senhor Ministro do Trabalho, Solidariedade e Seg. Social, nos termos do"]
[null,"art.º 59.º do D. Regulamentar n.º 1-A/2011, de 3 de janeiro, na redação introduzida pelo D. Regulamentar"]
[null,"n.º 6/2018, de 2 de julho."]
[]
[]
[null,"* Campos de preenchimento obrigatório."]
[null,"Os cálculos utilizam o IAS 2020 com valor provisório de 438,81 euros, que pode estar sujeito a alteração quando for publicada a legislação."]
[]
[null,"A Ordem não se responsabiliza por valores incorretos apurados, resultantes de erros na introdução de dados ou na interpretação das normas aplicáveis."]

{"sheet":"Auxiliar","index":1,"n_rows":11,"n_cols":4,"rows_kept":11,"cut":false,"hidden":true,"merged":[]}
["Sim","Trab. Ind.","Selecione","Selecione"]
["Não","Emp. Nome Ind.","- 5%","Out/Nov/Dez 2019"]
[null,null,"+ 5%","Jan/Fev/Mar 2020"]
[null,null,"- 10%","Abr/Mai/Jun 2020"]
[null,null,"+ 10%","Jul/Ago/Set 2020"]
[null,null,"- 15%","Out/Nov/Dez 2020"]
[null,null,"+ 15%"]
[null,null,"- 20%"]
[null,null,"+ 20%"]
[null,null,"- 25%"]
[null,null,"+ 25%"]

{"sheet":"Cálculos","index":2,"n_rows":48,"n_cols":9,"rows_kept":48,"cut":false,"hidden":true,"merged":[[3,4,3,5],[12,4,12,5],[17,4,17,5],[9,4,9,5]]}
[]
[null,"Tem rendimentos da categoria A?",{"$f":"IF('SS - TI'!F20=\"Sim\",\"S\",IF('SS - TI'!F20=\"Não\",\"N\",ERRO))","v":"N"}]
[null,"Remuneração mensal média Categoria A superior a 438,81€?",{"$f":"'SS - TI'!F22","v":"Não"}]
[null,"Tem contabilidade organizada?",{"$f":"IF('SS - TI'!F24=\"Sim\",\"S\",IF('SS - TI'!F24=\"Não\",\"N\",ERRO))","v":"S"},null,"Taxas"]
[null,"Lucro Tributável do ano anterior",{"$f":"'SS - TI'!F26","v":0},null,"TI",0.214]
[null,"Trabalhador Independente ou Empresário Em Nome Individual?",{"$f":"IF('SS - TI'!F18=\"Trab. Ind.\",\"TI\",IF('SS - TI'!F18=\"Emp. Nome Ind.\",\"ENI\",ERRO))","v":"TI"},null,"ENI",0.252]
[null,"Vendas",{"$f":"IF(ISBLANK('SS - TI'!F32),\"\",'SS - TI'!F32)","v":""},null,"Vendas",0.2]
[null,"Serviços de restauração",{"$f":"IF(ISBLANK('SS - TI'!F34),\"\",'SS - TI'!F34)","v":""},null,"Serviços de restauração",0.2]
[null,"Prestações de serviços",{"$f":"IF(ISBLANK('SS - TI'!F36),\"\",'SS - TI'!F36)","v":""},null,"Prestações de serviços",0.7]
[null,"Declaração Trimestral ?",{"$f":"IF('SS - TI'!F28=\"Sim\",\"S\",IF('SS - TI'!F28=\"Não\",\"N\",ERRO))","v":"N"},null,"Valores"]
[null,"Rendimento Fixo Superior ou Inferior?",{"$f":"IF(ISBLANK('SS - TI'!#REF!),,IF('SS - TI'!#REF!=\"Superior\",\"S\",IF('SS - TI'!#REF!=\"Inferior\",\"I\",ERRO)))","v":{"$error":"#REF!"}},null,"Valor Rend. A",438.81]
[null,"Percentagem do Rendimento Fixo",{"$f":"'SS - TI'!#REF!","v":{"$error":"#REF!"}},null,"K",1715.6]
[null,null,null,null,"Mínimos"]
[null,null,null,null,"Z - TI",643.35]
[null,null,null,null,"Z - ENI",643.35]
[null,"Y",{"$f":"C3","v":"Não"},null,"W - TI",93.45,null,"Cálculos"]
[null,"Se Y< 438,81",{"$f":"IF(C16=\"N\",TRUE,FALSE)","v":false},null,"W - ENI",79.349999999999994,null,1,"Não Tem Rend. Cat. A - Tem Cont. Organizada"]
[null,"Se Y>= 438,81",{"$f":"IF(C16=\"S\",TRUE,FALSE)","v":false},null,"Máximos",null,null,2,"Não Tem Rend. Cat. A - Não tem Cont. Organizada"]
[null,"VAL",{"$f":"IF(OR(C7=\"\",C8=\"\",C9=\"\"),0,C7+C8+C9)","v":0},null,"Z - TI",5146.8,null,3,"Tem Rend. Cat. A - Y Sup. - K Inf."]
[null,"K",{"$f":"C19/3","v":0},null,"Z - ENI",5146.8,null,4,"Tem Rend. Cat. A - Y Inf. - Tem Cont. Organizada"]
[null,"Se K< 1715,60",{"$f":"IF(C20<F12,TRUE,FALSE)","v":true},null,"W - TI",5146.8,null,5,"Tem Rend. Cat. A - Y Sup. - K Sup. - Tem Cont. Organizada"]
[null,"Se K>= 1715,60",{"$f":"IF(C20>=F12,TRUE,FALSE)","v":false},null,"W - ENI",5146.8,null,6,"Tem Rend. Cat. A - Y Sup. - K Sup. - Não tem Cont. Organizada"]
[null,"R",{"$f":"C20-F12","v":-1715.6},null,null,null,null,7,"Tem Rend. Cat. A - Y Inf. - Não tem Cont. Organizada"]
[null,"Z",{"$f":"IF(C40=1,C5/12,IF(C40=4,C5/12,IF(C40=5,C23,\"N/A\")))","v":0}]
[null,"Se Z<= ?",{"$f":"IF(C24=\"N/A\",\"N/A\",IF(C24<=(IF(C6=\"TI\",F14,IF(C6=\"ENI\",F15,\"ERRO\"))),IF(C6=\"TI\",F14,IF(C6=\"ENI\",F15,\"ERRO\")),FALSE))","v":643.35}]
[null,"Se Z>= ?",{"$f":"IF(C24=\"N/A\",\"N/A\",IF(C24>=IF(C6=\"TI\",F19,IF(C6=\"ENI\",F20,\"ERRO\")),IF(C6=\"TI\",F19,IF(C6=\"ENI\",F20,\"ERRO\")),FALSE))","v":false}]
[null,"Valor de Z",{"$f":"IF(C24=\"N/A\",\"N/A\",IF(C25<>FALSE,C25,IF(C26<>FALSE,C26,C24)))","v":643.35}]
[null,"W",{"$f":"IF(C40=1,((C7*F7)+(C8*F8)+(C9*F9))/3,IF(C40=2,((C7*F7)+(C8*F8)+(C9*F9))/3,IF(C40=4,((C7*F7)+(C8*F8)+(C9*F9))/3,IF(C40=5,((C7*F7)+(C8*F8)+(C9*F9))/3,IF(C40=7,((C7*F7)+(C8*F8)+(C9*F9))/3,IF(C40=6,C23,\"N/A\"))))))","v":{"$error":"#VALUE!"}}]
[null,"Se W<= ?",{"$f":"IF(C28=\"N/A\",\"N/A\",IF(C28<=IF(C6=\"TI\",F16,IF(C6=\"ENI\",F17,\"ERRO\")),IF(C6=\"TI\",F16,IF(C6=\"ENI\",F17,\"ERRO\")),FALSE))","v":{"$error":"#VALUE!"}}]
[null,"Se W>= ?",{"$f":"IF(C28=\"N/A\",\"N/A\",IF(C28>=IF(C6=\"TI\",F21,IF(C6=\"ENI\",F22,\"ERRO\")),IF(C6=\"TI\",F21,IF(C6=\"ENI\",F22,\"ERRO\")),FALSE))","v":{"$error":"#VALUE!"}}]
[null,"Valor de W",{"$f":"IF(C28=\"N/A\",\"N/A\",IF(C29<>FALSE,C29,IF(C30<>FALSE,C30,C28)))","v":{"$error":"#VALUE!"}}]
[null,"Rendimento Fixo",{"$f":"IF(OR(C11=\"S\",C11=\"I\"),IF(C31<>\"N/A\",C31,\"N/A\"),\"N/A\")","v":{"$error":"#REF!"}}]
[null,"Superior",{"$f":"IF(C11=\"S\",TRUE,FALSE)","v":{"$error":"#REF!"}}]
[null,"Inferior",{"$f":"IF(C11=\"I\",TRUE,FALSE)","v":{"$error":"#REF!"}},null,{"$f":"IF(C10=\"N\",\"N\",\"S\")","v":"N"},null,null,"Testes"]
[null,"Rendimento Fixo",{"$f":"IF(C32<>\"N/A\",IF(C33=TRUE,C31*(1+C12),IF(C34=TRUE,C31*(1-C12),\"ERRO\")),\"N/A\")","v":{"$error":"#REF!"}},null,null,null,null,{"$f":"IF(OR(ISBLANK('SS - TI'!F20),ISBLANK('SS - TI'!F24),ISBLANK('SS - TI'!F18),ISBLANK('SS - TI'!F28)),\"Por favor verificar os campos de preenchimento obrigatório.\",TRUE)","v":true},"Preenchimento dos campos obrigatórios"]
[null,"Base do Rendimento Fixo",{"$f":"IF(AND(C6=\"TI\",C35<F16),F16,IF(AND(C6=\"ENI\",C35<F17),F17,IF(AND(C6=\"TI\",C35>F21),F21,IF(AND(C6=\"ENI\",C35>F22),F22,C35))))","v":{"$error":"#REF!"}},null,null,null,null,{"$f":"IF(C2=\"S\",IF(NOT(ISBLANK('SS - TI'!F22)),TRUE,\"Por favor preencher o valor da remuneração mensal média\"),IF(ISBLANK('SS - TI'!F22),TRUE,\"Por favor apagar o valor da remuneração mensal média\"))","v":"Por favor apagar o valor da remuneração mensal média"},"Tem rendimentos da Cat. A e preencheu a remuneração mensal média?"]
[null,"Valor do Rendimento Fixo",{"$f":"IF(C32<>\"N/A\",C36*C38,\"N/A\")","v":{"$error":"#REF!"}},null,null,null,null,{"$f":"IF(C4=\"S\",IF(NOT(ISBLANK('SS - TI'!F26)),TRUE,\"Por favor preencher o valor do lucro tributável do ano anterior\"),IF(ISBLANK('SS - TI'!F26),TRUE,\"Por favor apagar o valor do lucro tributável do ano anterior\"))","v":"Por favor preencher o valor do lucro tributável do ano anterior"},"Tem Contabilidade Organizada e não preencheu o lucro tributável?"]
[null,"Taxa",{"$f":"IF(C6=\"TI\",F5,IF(C6=\"ENI\",F6,\"ERRO - Taxa Incorreta\"))","v":0.214},null,null,null,null,{"$f":"IF(C10=\"S\",IF(OR(C7=\"\",C8=\"\",C9=\"\"),\"Por favor preencher o valor dos rendimentos\",TRUE),IF(C4=\"N\",IF(OR(C7=\"\",C8=\"\",C9=\"\"),\"Por favor preencher o valor dos rendimentos\",TRUE),IF(AND(C2=\"S\",C3>=F11),TRUE,IF(AND(C7=\"\",C8=\"\",C9=\"\"),TRUE,\"Por favor apagar o valor dos rendimentos\"))))","v":true},"Não tem declaração Trimestral e Não tem Contabilidade Organizada e não preencheu os rendimentos?"]
[null,null,null,null,null,null,null,{"$f":"IF(OR(ISERROR(C2),ISERROR(C3),ISERROR(C4),ISERROR(C5),ISERROR(C6),ISERROR(C7),ISERROR(C8),ISERROR(C9),ISERROR(C10)),FALSE,TRUE)","v":true},"É ERRO? (Valores Introduzidos)"]
[null,"Cálculo",{"$f":"IF(AND(C2=\"N\",C4=\"S\"),1,IF(AND(C2=\"N\",C4=\"N\"),2,IF(AND(C2=\"S\",C18=TRUE,C21=TRUE),3,IF(AND(C2=\"S\",C17=TRUE,C4=\"S\"),4,IF(AND(C2=\"S\",C18=TRUE,C22=TRUE,C4=\"S\"),5,IF(AND(C2=\"S\",C18=TRUE,C22=TRUE,C4=\"N\"),6,IF(AND(C2=\"S\",C17=TRUE,C4=\"N\"),7,\"ERRO\")))))))","v":1},null,null,null,null,{"$f":"IF(ISERROR(IF(C48<>\"\",\"\",IF(C40=1,C27*C38,IF(C40=2,C31*C38,IF(C40=3,\"Isento na Categoria B\",IF(C40=4,C27*C38,IF(C40=5,C27*C38,IF(C40=6,C31*C38,IF(C40=7,C31*C38,\"\"))))))))),FALSE,TRUE)","v":true},"É ERRO? (Valor da Contribuição Mensal)"]
[null,null,null,null,null,null,null,{"$f":"IF(ISERROR(IF(C48<>\"\",\"\",IF(C10=\"N\",\"\",IF(C40=1,C31*C38,\"\")))),FALSE,TRUE)","v":true},"É ERRO? (Valor se Declaração Trimestral)"]
[null,"Valor da Contribuição Mensal",{"$f":"IF(ISERROR(IF(C48<>\"\",\"\",IF(C40=1,C27*C38,IF(C40=2,C31*C38,IF(C40=3,\"Isento na Categoria B\",IF(C40=4,C27*C38,IF(C40=5,C27*C38,IF(C40=6,C31*C38,IF(C40=7,C31*C38,\"\"))))))))),\"\",IF(C48<>\"\",\"\",IF(C40=1,C27*C38,IF(C40=2,C31*C38,IF(C40=3,\"Isento na Categoria B\",IF(C40=4,C27*C38,IF(C40=5,C27*C38,IF(C40=6,C31*C38,IF(C40=7,C31*C38,\"\")))))))))","v":""},null,null,null,null,{"$f":"IF(OR(C2=\"S\",C2=\"N\"),TRUE,IF(OR(C4=\"S\",C4=\"N\"),TRUE,IF(OR(C6=\"TI\",C6=\"ENI\"),TRUE,IF(OR(C10=\"S\",C10=\"N\"),TRUE,IF(C3>0,TRUE,IF(C5>0,TRUE,IF(C7>0,TRUE,IF(C8>0,TRUE,IF(C9>0,TRUE,FALSE)))))))))","v":true},"Validação conteúdo dos campos"]
[null,"Descrição da Contribuição Mensal",{"$f":"IF(C42=\"\",\"\",IF(C48<>\"\",\"\",IF(H40=FALSE,\"\",\"Contribuição Mensal\")))","v":""},null,null,null,null,{"$f":"IF(AND(C2=\"S\",C3>=F11),IF(OR(C7=\"\",C8=\"\",C9=\"\"),\"Por favor preencher o valor dos rendimentos\",TRUE),TRUE)","v":true},"Tem rendimentos da Cat. A e preencheu rendimentos?"]
[null,"Valor se Declaração Trimestral",{"$f":"IF(ISERROR(IF(C48<>\"\",\"\",IF(C10=\"N\",\"\",IF(OR(C40=1,C40=4,C40=5),C31*C38,\"\")))),\"\",IF(C48<>\"\",\"\",IF(C10=\"N\",\"\",IF(OR(C40=1,C40=4,C40=5),C31*C38,\"\"))))","v":""},null,null,null,null,{"$f":"IF(AND(C40=1,C10=\"N\",OR(OR(C11=\"S\",C11=\"I\"),OR(C12=0.05,C12=0.1,C12=0.15,C12=0.2,C12=0.25))),\"Por favor apagar a informação referente ao rendimento fixo\",IF(AND(C40=4,C10=\"N\",OR(OR(C11=\"S\",C11=\"I\"),OR(C12=0.05,C12=0.1,C12=0.15,C12=0.2,C12=0.25))),\"Por favor apagar a informação referente ao rendimento fixo\",IF(AND(C40=5,C10=\"N\",OR(OR(C11=\"S\",C11=\"I\"),OR(C12=0.05,C12=0.1,C12=0.15,C12=0.2,C12=0.25))),\"Por favor apagar a informação referente ao rendimento fixo\",TRUE)))","v":{"$error":"#REF!"}},"Verifica se deve ou não preencher a informação referente ao rendimento fixo"]
[null,"Descrição se Declaração Trimestral",{"$f":"IF(C44=\"\",\"\",IF(C48<>\"\",\"\",IF(C10=\"N\",\"\",IF(H41=FALSE,\"\",IF(OR(C40=1,C40=4,C40=5),\"Se optar pela declaração trimestral\",\"\")))))","v":""},null,null,null,null,{"$f":"IF(OR(C11=\"S\",C11=\"I\"),IF(OR(C12=0.05,C12=0.1,C12=0.15,C12=0.2,C12=0.25),TRUE,\"Por favor preencher a percentagem do rendimento fixo\"),IF(OR(C12=0.05,C12=0.1,C12=0.15,C12=0.2,C12=0.25),\"Por favor indicar se pretende simulação para um rendimento fixo superior ou inferior\",TRUE))","v":{"$error":"#REF!"}},"Verifica se preencheu a percentagem e não prencheu se é superior ou inferior e vice-versa."]
[null,"Valor se Rendimento Fixo",{"$f":"IF(ISERROR(IF(C37=\"N/A\",\"\",IF(C48<>\"\",\"\",IF(AND(C40=1,C10=\"S\"),C37,IF(C40=2,C37,IF(C40=3,\"\",IF(AND(C40=4,C10=\"S\"),C37,IF(AND(C40=5,C10=\"S\"),C37,IF(C40=6,C37,IF(C40=7,C37,\"\")))))))))),\"\",IF(C37=\"N/A\",\"\",IF(C48<>\"\",\"\",IF(AND(C40=1,C10=\"S\"),C37,IF(C40=2,C37,IF(C40=3,\"\",IF(AND(C40=4,C10=\"S\"),C37,IF(AND(C40=5,C10=\"S\"),C37,IF(C40=6,C37,IF(C40=7,C37,\"\"))))))))))","v":""}]
[null,"Descrição se Rendimento Fixo",{"$f":"IF(C46=\"\",\"\",IF(C48<>\"\",\"\",IF(OR(AND(C40=1,C10=\"S\"),AND(C40=4,C10=\"S\"),C40=2,,AND(C40=5,C10=\"S\"),C40=6,C40=7),\"Se optar pelo rendimento fixo\",\"\")))","v":""}]
[null,"Descrição de ERROS",{"$f":"IF(H35<>TRUE,H35,IF(H36<>TRUE,H36,IF(H37<>TRUE,H37,IF(H44<>TRUE,H44,IF(H39<>TRUE,H39,IF(H42<>TRUE,H42,IF(H43<>TRUE,H43,IF(H38<>TRUE,H38,IF(H45<>TRUE,H45,\"\")))))))))","v":"Por favor apagar o valor da remuneração mensal média"}]

{"sheet":"Alerta","index":3,"n_rows":6,"n_cols":2,"rows_kept":6,"cut":false,"hidden":false,"merged":[[0,1,0,6],[1,1,1,6],[5,1,5,6]]}
[]
[null,"Simulador - Segurança Social - Trabalhadores Independentes"]
[]
[]
[]
[null,"Para utilizar o simulador deverá ativar as macros."]